bitfinex-derivatives/quotes_BTCF0:USTF0_20241029
["timestamp","ask_amount","ask_price","bid_price","bid_amount"]
[1730166588132,0.21529183,70130.0,70129.0,0.3628]
[1730166588323,0.21529183,70130.0,70129.0,0.002]
[1730166588523,0.21629183,70130.0,70129.0,0.002]
[1730166589023,0.25123944,70130.0,70129.0,0.002]
[1730166589424,0.24523944,70130.0,70129.0,0.001]
[1730166589618,0.25223944,70130.0,70129.0,0.002]
[1730166590218,0.24523944,70130.0,70129.0,0.001]
[1730166590525,0.24523944,70130.0,70129.0,0.002]
[1730166590526,0.25923944,70130.0,70129.0,0.002]
[1730166590924,0.087201,70130.0,70129.0,0.3628]
[1730166591123,0.078201,70130.0,70129.0,0.3618]
[1730166591325,0.087201,70130.0,70129.0,0.3628]
[1730166592533,0.078201,70130.0,70129.0,0.3618]
[1730166592832,0.087201,70130.0,70129.0,0.3628]
[1730166593426,0.078201,70130.0,70129.0,0.3628]
[1730166593631,0.087201,70130.0,70129.0,0.002]
[1730166594019,0.12214588,70130.0,70129.0,0.002]
[1730166595026,0.12214603,70130.0,70129.0,0.002]
[1730166595427,0.16594717,70130.0,70129.0,0.002]
[1730166595629,0.11314603,70130.0,70129.0,0.001]
[1730166595833,0.12214603,70130.0,70129.0,0.002]
[1730166596430,0.15694798,70130.0,70129.0,0.001]
[1730166596651,0.16594798,70130.0,70129.0,0.002]
[1730166599231,0.19177742,70130.0,70129.0,0.002]
[1730166600836,0.61957742,70130.0,70129.0,0.002]
[1730166601135,0.71337742,70130.0,70129.0,0.002]
[1730166601536,0.76456639,70130.0,70129.0,0.002]
[1730166601941,0.06421,70121.0,70120.0,0.3608]
[1730166602145,0.40048781,70121.0,70120.0,0.3608]
[1730166602337,0.064215,70115.0,70114.0,0.3608]
[1730166602643,0.23625086,70115.0,70114.0,0.57580812]
[1730166602944,0.28005281,70115.0,70114.0,0.57580812]
[1730166603134,0.1655962,70115.0,70114.0,0.68457966]
[1730166603441,0.1655962,70115.0,70114.0,0.39477206]
[1730166603830,0.1655962,70115.0,70114.0,0.32377966]
[1730166604244,0.1655962,70115.0,70114.0,0.28596418]
[1730166604754,0.1655962,70115.0,70114.0,0.32378215]
[1730166605043,0.1655962,70115.0,70114.0,0.32678215]
[1730166605442,0.005,70121.0,70114.0,0.46386367]
[1730166605642,0.064211,70120.0,70119.0,0.3608]
[1730166605842,0.064211,70120.0,70119.0,0.46955937]
[1730166606041,0.005,70121.0,70119.0,0.46955937]
[1730166606355,0.005,70121.0,70120.0,0.17296937]
[1730166606535,0.00096001,70130.0,70120.0,0.79540882]
[1730166606733,0.003,70121.0,70120.0,0.32301945]
[1730166606939,0.064205,70126.0,70124.0,0.064206]
[1730166607143,0.064205,70126.0,70125.0,0.4695499]
[1730166607335,0.064205,70126.0,70125.0,0.68262961]
[1730166607736,0.064205,70126.0,70125.0,0.74683561]
[1730166607948,0.064201,70131.0,70128.0,0.064202]
[1730166608135,0.064202,70130.0,70129.0,0.07089796]
[1730166608445,0.13709083,70134.0,70128.0,0.13509996]
[1730166608745,0.064202,70129.0,70128.0,0.13509996]
[1730166609544,0.064202,70129.0,70128.0,0.17963977]
[1730166609740,0.064205,70126.0,70125.0,0.001]
[1730166609937,0.20129583,70126.0,70125.0,0.001]
[1730166610231,0.20129583,70126.0,70125.0,0.21449954]
[1730166610634,0.06421,70121.0,70120.0,0.21449954]
[1730166610841,0.06421,70121.0,70120.0,0.06421]
[1730166611044,0.06421,70121.0,70120.0,0.10676913]
[1730166611242,0.06421,70121.0,70120.0,0.32210089]
[1730166611443,0.06421,70121.0,70120.0,0.32210072]
[1730166611941,0.06421,70121.0,70120.0,0.27954176]
[1730166612242,0.06721,70121.0,70120.0,0.27954176]
[1730166612453,0.06721,70121.0,70120.0,0.32209864]
[1730166612655,0.20430083,70121.0,70120.0,0.21533176]
[1730166613447,0.07221,70121.0,70120.0,0.21533176]
[1730166614040,0.008,70121.0,70120.0,0.41663259]
[1730166614540,0.005,70121.0,70120.0,0.84447259]
[1730166614847,0.3608,70147.0,70131.0,0.0642]
[1730166614848,0.064198,70134.0,70131.0,0.0642]
[1730166615036,0.18419083,70142.0,70138.0,0.064194]
[1730166615037,0.064191,70142.0,70138.0,0.064194]
[1730166615235,0.064191,70142.0,70141.0,0.3608]
[1730166617451,0.081191,70142.0,70141.0,0.3628]
[1730166618237,0.15992087,70142.0,70141.0,0.3628]
[1730166620844,0.21108966,70142.0,70141.0,0.3628]
[1730166622545,0.31629986,70142.0,70141.0,0.3628]
[1730166622739,0.36746865,70142.0,70141.0,0.3628]
[1730166623052,0.21108966,70142.0,70141.0,0.3628]
[1730166624148,0.31628261,70142.0,70141.0,0.3628]
[1730166624347,0.3674514,70142.0,70141.0,0.3628]
[1730166625340,0.081191,70142.0,70141.0,0.3628]
[1730166629559,0.081191,70142.0,70141.0,0.002]
[1730166630344,0.130291,70142.0,70141.0,0.002]
[1730166630544,0.130291,70142.0,70133.0,0.3608]
[1730166630545,0.064198,70134.0,70133.0,0.3608]
[1730166630848,0.20128883,70134.0,70133.0,0.3608]
[1730166631250,0.20128883,70134.0,70124.0,0.425807]
[1730166631454,0.20129683,70125.0,70124.0,0.3608]
[1730166631959,0.20129683,70125.0,70124.0,0.57464856]
[1730166632647,0.20229683,70125.0,70124.0,0.57464856]
[1730166633363,0.28304586,70125.0,70124.0,0.57464856]
[1730166633858,0.4394076,70125.0,70124.0,0.57464856]
[1730166634061,0.28304586,70125.0,70124.0,0.57464856]
[1730166634249,0.49059041,70125.0,70124.0,0.57464856]
[1730166634561,0.33422867,70125.0,70124.0,0.57464856]
[1730166635069,0.41913669,70125.0,70124.0,0.3608]
[1730166635360,0.76503048,70125.0,70124.0,0.3608]
[1730166636668,0.33723048,70125.0,70124.0,0.3608]
[1730166637053,0.47051048,70125.0,70124.0,0.3608]
[1730166638959,0.33723048,70125.0,70124.0,0.3608]
[1730166639170,0.28604586,70125.0,70124.0,0.3608]
[1730166639348,0.20729683,70125.0,70124.0,0.3608]
[1730166639663,0.28605167,70125.0,70124.0,0.3608]
[1730166639850,0.4231425,70125.0,70124.0,0.3608]
[1730166640054,0.4231425,70125.0,70116.0,0.3608]
[1730166640055,0.064213,70117.0,70116.0,0.3608]
[1730166640249,0.23625267,70117.0,70116.0,0.3608]
[1730166640457,0.20130383,70117.0,70116.0,0.3608]
[1730166641350,0.064213,70117.0,70116.0,0.3608]
[1730166641867,0.064213,70117.0,70116.0,0.3658]
[1730166642566,0.064213,70117.0,70116.0,0.3718]
[1730166642765,0.064213,70117.0,70116.0,0.39765391]
[1730166643860,0.20130383,70117.0,70116.0,0.39765391]
[1730166648265,0.28006329,70117.0,70116.0,0.39765391]
[1730166649185,0.33125497,70117.0,70116.0,0.011]
[1730166649474,0.43641955,70117.0,70116.0,0.011]
[1730166649667,0.35645361,70117.0,70116.0,0.011]
[1730166649974,0.91761361,70117.0,70116.0,0.006]
[1730166650160,0.91761361,70117.0,70110.0,0.3608]
[1730166650161,0.064219,70111.0,70110.0,0.3608]
[1730166650357,0.23626072,70111.0,70100.0,0.3608]
[1730166650574,0.20131883,70101.0,70100.0,0.3608]
[1730166650762,0.28007829,70101.0,70100.0,0.3608]
[1730166651075,0.41716912,70101.0,70100.0,0.5735884]
[1730166651273,0.064234,70094.0,70093.0,0.3608]
[1730166651575,0.23627572,70094.0,70093.0,0.5759267]
[1730166652372,0.03595089,70094.0,70093.0,0.6541617]
[1730166652575,0.001,70094.0,70093.0,0.6541617]
[1730166652772,0.03695578,70094.0,70093.0,0.6631617]
[1730166653073,0.002,70094.0,70093.0,0.6621617]
[1730166654563,0.03695613,70094.0,70093.0,0.6621617]
[1730166654963,0.0477,70109.0,70093.0,0.6621617]
[1730166654964,0.13709083,70109.0,70093.0,1.0901617]
[1730166655163,0.064221,70108.0,70107.0,0.3608]
[1730166655363,0.16560101,70108.0,70107.0,0.3608]
[1730166656371,0.16860101,70108.0,70107.0,0.3608]
[1730166656565,0.03151018,70108.0,70107.0,0.3608]
[1730166656767,0.16860101,70108.0,70107.0,0.3608]
[1730166657366,0.16860101,70108.0,70107.0,0.4316956]
[1730166657674,0.16960101,70108.0,70107.0,0.3608]
[1730166658075,0.16960101,70108.0,70107.0,0.4316956]
[1730166658277,0.16960101,70108.0,70107.0,0.46957348]
[1730166660472,0.13809083,70108.0,70107.0,0.55465425]
[1730166661183,0.13809083,70108.0,70107.0,0.55465037]
[1730166661367,0.13809083,70108.0,70107.0,0.55472986]
[1730166661570,0.20231183,70108.0,70107.0,0.4695696]
[1730166661767,0.20231183,70108.0,70107.0,0.554732]
[1730166661969,0.20231183,70108.0,70107.0,0.4695696]
[1730166662376,0.02781201,70116.0,70107.0,1.31325912]
[1730166662377,0.00214031,70116.0,70107.0,1.31325912]
[1730166662577,0.20344514,70116.0,70115.0,0.44595763]
[1730166662880,0.20344514,70116.0,70115.0,0.4695696]
[1730166663274,0.20344514,70116.0,70115.0,0.3608]
[1730166663576,0.21444514,70116.0,70115.0,0.3608]
[1730166664482,0.22344514,70116.0,70115.0,0.3608]
[1730166665277,0.22344514,70116.0,70115.0,0.3628]
[1730166666283,0.65132514,70116.0,70115.0,0.3628]
[1730166666473,0.65132514,70116.0,70115.0,0.002]
[1730166668174,0.22344514,70116.0,70115.0,0.002]
[1730166668572,0.24896544,70116.0,70115.0,0.002]
[1730166668778,0.67684544,70116.0,70115.0,0.002]
[1730166669280,0.61263144,70116.0,70107.0,0.3608]
[1730166669477,0.20131183,70108.0,70107.0,0.3608]
[1730166669775,0.34343183,70108.0,70093.0,0.04258326]
[1730166669967,0.20132283,70097.0,70092.0,0.3608]
[1730166670372,0.2801002,70097.0,70096.0,0.57406261]
[1730166670573,0.33130181,70097.0,70096.0,0.3608]
[1730166671173,0.33130181,70097.0,70096.0,0.30943016]
[1730166671582,0.33230181,70097.0,70096.0,0.32343016]
[1730166672083,0.33330181,70097.0,70096.0,0.33543016]
[1730166672882,0.35949953,70097.0,70096.0,0.33543016]
[1730166673277,0.33330181,70097.0,70096.0,0.33543016]
[1730166674374,0.46722032,70097.0,70096.0,0.33543016]
[1730166674674,0.51842193,70097.0,70096.0,0.33543016]
[1730166674872,0.51842759,70097.0,70096.0,0.33543016]
[1730166675076,0.51842864,70097.0,70096.0,0.33543016]
[1730166675883,0.33330852,70097.0,70096.0,0.33543016]
[1730166678494,0.34548283,70097.0,70096.0,0.33543016]
[1730166679491,0.002,70097.0,70096.0,0.53675299]
[1730166679792,0.066232,70097.0,70096.0,0.53675299]
[1730166679988,0.066232,70097.0,70096.0,0.44224108]
[1730166680493,0.066232,70097.0,70096.0,0.44223956]
[1730166680693,0.066232,70097.0,70096.0,0.39966216]
[1730166683490,0.066232,70097.0,70096.0,0.44916216]
[1730166684382,0.002,70097.0,70096.0,1.02268719]
[1730166684583,0.066232,70097.0,70096.0,1.02268719]
[1730166685083,0.066232,70097.0,70096.0,1.06525292]
[1730166685287,0.066232,70097.0,70096.0,1.00102092]
[1730166685489,0.14500465,70097.0,70096.0,0.95845519]
[1730166685682,0.19620319,70097.0,70096.0,0.95845519]
[1730166686087,0.14500465,70097.0,70096.0,0.95845519]
[1730166687897,0.14500465,70097.0,70096.0,1.02268719]
[1730166688282,0.08077265,70097.0,70096.0,1.02268719]
[1730166688487,0.08077265,70097.0,70096.0,1.15977802]
[1730166688695,0.08077255,70097.0,70096.0,1.15977802]
[1730166690799,0.14500455,70097.0,70096.0,0.95845519]
[1730166691690,0.14500455,70097.0,70096.0,0.90895519]
[1730166691995,0.19620278,70097.0,70096.0,0.90895519]
[1730166692486,0.066232,70097.0,70096.0,0.90895519]
[1730166693284,0.066232,70097.0,70096.0,0.33543016]
[1730166693684,0.119132,70097.0,70096.0,0.33543016]
[1730166696498,0.066232,70097.0,70096.0,0.33543016]
[1730166697188,0.066232,70097.0,70096.0,0.39966216]
[1730166697804,0.002,70097.0,70096.0,0.39966216]
[1730166698196,0.066232,70097.0,70096.0,0.33543016]
[1730166698698,0.066232,70097.0,70096.0,0.39966216]
[1730166698890,0.066232,70097.0,70096.0,0.33543016]
[1730166699495,0.066232,70097.0,70096.0,0.39966216]
[1730166700600,0.002,70097.0,70096.0,0.39966216]
[1730166702893,0.002,70097.0,70096.0,0.61384577]
[1730166705701,0.066232,70097.0,70096.0,0.54961377]
[1730166706095,0.066232,70097.0,70096.0,0.61384577]
[1730166707592,0.10118933,70097.0,70096.0,0.61384577]
[1730166707801,0.14500597,70097.0,70096.0,0.61384577]
[1730166710095,0.14500719,70097.0,70096.0,0.61384577]
[1730166710694,0.14500719,70097.0,70096.0,0.54961377]
[1730166711103,0.14500719,70097.0,70096.0,0.61384577]
[1730166712100,0.14500803,70097.0,70096.0,0.61384577]
[1730166713198,0.14500803,70097.0,70096.0,0.54961377]
[1730166715508,0.14500803,70097.0,70096.0,0.33543016]
[1730166715509,0.066232,70097.0,70096.0,0.33543016]
[1730166715806,0.066232,70097.0,70096.0,0.026]
[1730166717408,0.427032,70097.0,70096.0,0.026]
[1730166718209,0.45216537,70097.0,70096.0,0.026]
[1730166721212,0.45216537,70097.0,70085.0,0.3608]
[1730166721213,0.064242,70086.0,70085.0,0.3608]
[1730166722610,0.14303774,70086.0,70085.0,0.3608]
[1730166722811,0.14403774,70086.0,70085.0,0.3648]
[1730166723715,0.14303774,70086.0,70085.0,0.3618]
[1730166724109,0.1692848,70086.0,70085.0,0.3618]
[1730166725209,0.1692857,70086.0,70085.0,0.3618]
[1730166726009,0.1692857,70086.0,70085.0,0.001]
[1730166726509,0.2767283,70086.0,70085.0,0.001]
[1730166726811,0.31169569,70086.0,70085.0,0.001]
[1730166727015,0.1692857,70086.0,70085.0,0.001]
[1730166730520,0.09048906,70086.0,70085.0,0.001]
[1730166734320,0.51852906,70086.0,70085.0,0.001]
[1730166734515,0.59137789,70086.0,70075.0,0.04256573]
[1730166734824,0.59137789,70086.0,70071.0,0.0516]
[1730166734825,0.13709083,70076.0,70071.0,0.09416573]
[1730166735119,0.20134483,70072.0,70071.0,0.09416573]
[1730166735318,0.20134483,70072.0,70071.0,0.0516]
[1730166735711,0.20134483,70072.0,70071.0,0.09416573]
[1730166736414,0.20234483,70072.0,70071.0,0.09816573]
[1730166736613,0.20334483,70072.0,70071.0,0.09816573]
[1730166736814,0.20334483,70072.0,70071.0,0.0556]
[1730166737016,0.20334483,70072.0,70071.0,0.004]
[1730166738513,0.23831892,70072.0,70071.0,0.004]
[1730166740519,0.26374778,70072.0,70071.0,0.004]
[1730166741216,0.30758663,70072.0,70071.0,0.004]
[1730166741414,0.43466663,70072.0,70071.0,0.004]
[1730166742819,0.064261,70065.0,70064.0,0.3608]
[1730166743013,0.23632592,70065.0,70064.0,0.3608]
[1730166743216,0.23632592,70065.0,70064.0,0.63836086]
[1730166743919,0.23732592,70065.0,70064.0,0.64136086]
[1730166745218,0.23732592,70065.0,70064.0,0.57709886]
[1730166745522,0.2471936,70065.0,70064.0,0.68594613]
[1730166745727,0.16761734,70065.0,70064.0,0.75020813]
[1730166748432,0.12058305,70065.0,70064.0,0.75020813]
[1730166748626,0.002,70065.0,70064.0,0.75020813]
[1730166748832,0.12708,70073.0,70072.0,0.064254]
[1730166749027,0.0514,70086.0,70072.0,0.064254]
[1730166749028,0.21713654,70074.0,70073.0,0.064254]
[1730166749231,0.28138954,70074.0,70073.0,0.064254]
[1730166749732,0.15430954,70074.0,70073.0,0.24417633]
[1730166750135,0.15430954,70074.0,70073.0,0.17308931]
[1730166751422,0.001,70074.0,70073.0,0.17708931]
[1730166751628,0.001,70074.0,70073.0,0.78984875]
[1730166751821,0.001,70074.0,70073.0,1.02946372]
[1730166752021,0.001,70074.0,70073.0,0.93940718]
[1730166752320,0.001,70074.0,70073.0,0.85410275]
[1730166753523,0.001,70074.0,70073.0,0.9865509]
[1730166753725,0.001,70074.0,70073.0,0.74526744]
[1730166754125,0.001,70074.0,70073.0,0.88246273]
[1730166754536,0.001,70074.0,70073.0,0.93933848]
[1730166754730,0.001,70074.0,70073.0,0.74526744]
[1730166756527,0.001,70074.0,70073.0,0.80214368]
[1730166756738,0.13819529,70074.0,70073.0,0.3658]
[1730166757038,0.20244829,70074.0,70073.0,0.3658]
[1730166760137,0.63056829,70074.0,70073.0,0.3658]
[1730166760736,1.12140477,70074.0,70073.0,0.005]
[1730166761043,1.25860006,70074.0,70073.0,0.005]
[1730166761234,1.12140477,70074.0,70073.0,0.005]
[1730166762033,1.25860006,70074.0,70073.0,0.005]
[1730166762339,1.21476572,70074.0,70073.0,0.005]
[1730166762540,1.19435512,70074.0,70054.0,0.3608]
[1730166762839,0.20146329,70057.0,70054.0,0.3608]
[1730166763043,0.28028357,70057.0,70054.0,0.3608]
[1730166763234,0.06427,70055.0,70054.0,0.425071]
[1730166763434,0.09924788,70055.0,70054.0,0.425071]
[1730166764540,0.10024788,70055.0,70054.0,0.430071]
[1730166764943,0.10124788,70055.0,70054.0,0.3658]
[1730166765143,0.06627,70055.0,70054.0,0.005]
[1730166765642,0.49451,70055.0,70054.0,0.005]
[1730166766238,0.51976423,70055.0,70054.0,0.005]
[1730166766439,0.65695952,70055.0,70054.0,0.005]
[1730166767240,1.01775952,70055.0,70054.0,0.005]
[1730166768945,1.15495481,70055.0,70054.0,0.005]
[1730166769147,1.15495481,70055.0,70042.0,0.3608]
[1730166769446,0.20147629,70043.0,70042.0,0.3608]
[1730166769646,0.32411629,70043.0,70042.0,0.3608]
[1730166770242,0.25983529,70043.0,70041.0,0.00214176]
[1730166770549,0.064282,70042.0,70041.0,0.00214176]
[1730166772647,0.065282,70042.0,70041.0,0.00214176]
[1730166772849,0.066282,70042.0,70041.0,0.00214176]
[1730166773349,0.066282,70042.0,70041.0,0.06642476]
[1730166774345,0.002,70042.0,70041.0,0.06642476]
[1730166780348,0.002,70042.0,70041.0,0.42722476]
[1730166781054,0.064272,70053.0,70041.0,1.0687707]
[1730166781247,0.064272,70053.0,70052.0,0.425073]
[1730166782150,0.066272,70053.0,70052.0,0.425073]
[1730166782743,0.064272,70053.0,70052.0,0.425073]
[1730166783151,0.065272,70053.0,70052.0,0.425073]
[1730166783348,0.066272,70053.0,70052.0,0.425073]
[1730166785263,0.066272,70053.0,70052.0,0.60494377]
[1730166785653,0.066272,70053.0,70052.0,0.53393083]
[1730166786067,0.002,70053.0,70052.0,0.53393083]
[1730166786560,0.002,70053.0,70052.0,0.64531964]
[1730166786862,0.066272,70053.0,70052.0,0.64531964]
[1730166787457,0.002,70053.0,70052.0,0.64531964]
[1730166787663,0.002,70053.0,70052.0,0.64531652]
[1730166788160,0.002,70053.0,70052.0,0.56010345]
[1730166789366,0.002,70053.0,70052.0,0.69259576]
[1730166789750,0.12264,70064.0,70063.0,0.064263]
[1730166789950,0.02558137,70070.0,70063.0,0.46965471]
[1730166790156,0.186897,70069.0,70068.0,0.13545196]
[1730166790356,0.186897,70069.0,70068.0,0.17311271]
[1730166791060,0.0285256,70069.0,70068.0,0.10885471]
[1730166791262,0.22775983,70071.0,70068.0,0.10885471]
[1730166791566,0.22775983,70071.0,70070.0,0.064256]
[1730166791567,0.09056454,70071.0,70070.0,0.064256]
[1730166791754,0.33415858,70071.0,70070.0,0.064256]
[1730166792459,0.27201151,70071.0,70070.0,0.064256]
[1730166794060,0.28101151,70071.0,70070.0,0.064256]
[1730166794961,0.24603779,70071.0,70070.0,0.064256]
[1730166795958,0.28101144,70071.0,70070.0,0.064256]
[1730166796161,0.28101098,70071.0,70070.0,0.064256]
[1730166796667,0.0445875,70071.0,70070.0,0.20145129]
[1730166796858,0.00214141,70074.0,70073.0,0.064254]
[1730166798262,0.02514141,70074.0,70073.0,0.064254]
[1730166799162,0.02514141,70074.0,70073.0,0.27808618]
[1730166799874,0.02514141,70074.0,70073.0,0.41528147]
[1730166800176,0.02514141,70074.0,70073.0,0.44065889]
[1730166800563,0.02514141,70074.0,70073.0,0.49738295]
[1730166800759,0.02514141,70074.0,70073.0,0.49737726]
[1730166801059,0.014,70074.0,70073.0,0.86877889]
[1730166801571,0.014,70074.0,70073.0,0.92547753]
[1730166802270,0.014,70074.0,70073.0,0.92547225]
[1730166802463,0.00214071,70089.0,70088.0,0.06424]
[1730166802667,0.00214071,70089.0,70088.0,0.56223529]
[1730166803559,0.00214071,70089.0,70088.0,0.42504]
[1730166803766,0.01114071,70089.0,70088.0,0.42604]
[1730166803969,0.02214071,70089.0,70088.0,0.3628]
[1730166804260,0.08637971,70089.0,70088.0,0.3628]
[1730166804869,0.17407971,70089.0,70088.0,0.3608]
[1730166805068,0.17507971,70089.0,70088.0,0.3608]
[1730166806770,0.18607971,70089.0,70088.0,0.3628]
[1730166807765,0.18607971,70089.0,70088.0,0.42704]
[1730166807766,0.01614071,70089.0,70088.0,0.42704]
[1730166808065,0.01514071,70089.0,70088.0,0.42704]
[1730166808469,0.01114071,70089.0,70088.0,0.42604]
[1730166808771,0.01514071,70089.0,70088.0,0.42704]
[1730166809669,0.00614071,70089.0,70088.0,0.42604]
[1730166809872,0.01514071,70089.0,70088.0,0.42704]
[1730166810070,0.01614071,70089.0,70088.0,0.42704]
[1730166810467,0.005,70089.0,70088.0,0.42604]
[1730166810675,0.01,70089.0,70088.0,0.42704]
[1730166811181,0.01,70089.0,70088.0,0.64098498]
[1730166811480,0.008,70089.0,70088.0,0.68878498]
[1730166811976,0.008,70089.0,70088.0,0.68778498]
[1730166812972,0.003,70089.0,70088.0,0.68778498]
[1730166813173,0.006,70089.0,70088.0,0.63898498]
[1730166813672,0.03357721,70089.0,70088.0,0.63898498]
[1730166813975,0.06853789,70089.0,70088.0,0.63898498]
[1730166814172,0.11235873,70089.0,70088.0,0.63898498]
[1730166815677,0.14801217,70089.0,70088.0,0.63898498]
[1730166815877,0.17558938,70089.0,70088.0,0.63898498]
[1730166816077,0.11235873,70089.0,70088.0,0.63898498]
[1730166816572,0.10935873,70089.0,70088.0,0.63898498]
[1730166816774,0.17565084,70089.0,70088.0,0.63898498]
[1730166817166,0.25443236,70089.0,70088.0,0.63898498]
[1730166817371,0.11235873,70089.0,70088.0,0.63898498]
[1730166821672,0.006,70089.0,70088.0,0.77618027]
[1730166825782,0.006,70089.0,70088.0,0.95602559]
[1730166826482,0.34462958,70089.0,70088.0,0.3608]
[1730166826682,0.34462958,70089.0,70086.0,0.04259441]
[1730166826888,0.34462958,70089.0,70085.0,0.04259441]
[1730166826889,0.064242,70086.0,70085.0,0.04259441]
[1730166827074,0.20143729,70086.0,70085.0,0.04259441]
[1730166827380,0.20143729,70086.0,70084.0,0.064243]
[1730166827381,0.064243,70085.0,70084.0,0.27725652]
[1730166827682,0.064243,70085.0,70084.0,0.064243]
[1730166828071,0.064245,70083.0,70082.0,0.064245]
[1730166828274,0.003,70089.0,70082.0,0.41758532]
[1730166828472,0.003,70089.0,70088.0,0.42504]
[1730166828780,0.14228621,70091.0,70089.0,0.064239]
[1730166828980,0.425032,70097.0,70088.0,0.42504]
[1730166828981,0.003,70089.0,70088.0,0.42504]
[1730166829180,0.10936029,70089.0,70088.0,0.06424]
[1730166829686,0.10636029,70089.0,70088.0,0.06424]
[1730166829882,0.11336029,70089.0,70088.0,0.06524]
[1730166830278,0.11736029,70089.0,70088.0,0.06524]
[1730166830479,0.11036029,70089.0,70088.0,0.06424]
[1730166830787,0.10936029,70089.0,70088.0,0.06424]
[1730166830973,0.11236029,70089.0,70088.0,0.27918285]
[1730166832087,0.25499994,70089.0,70088.0,0.84441814]
[1730166832391,0.03236029,70089.0,70088.0,0.84441814]
[1730166832586,0.03236029,70089.0,70088.0,0.70722285]
[1730166833782,0.03236029,70089.0,70088.0,0.27918285]
[1730166836679,0.006,70089.0,70088.0,0.27918285]
[1730166837392,0.006,70089.0,70088.0,0.3359896]
[1730166837781,0.006,70089.0,70088.0,0.27918285]
[1730166838692,0.14319529,70089.0,70088.0,0.27918285]
[1730166838896,0.006,70089.0,70088.0,0.27918285]
[1730166839078,0.006,70089.0,70088.0,0.32180392]
[1730166839387,0.006,70089.0,70088.0,0.27918285]
[1730166843501,0.006,70089.0,70088.0,0.70722285]
[1730166844088,0.03357533,70089.0,70088.0,0.70722285]
[1730166844289,0.11235147,70089.0,70088.0,0.70722285]
[1730166845100,0.11234848,70089.0,70088.0,0.84441814]
[1730166845401,0.06853362,70089.0,70088.0,0.84441814]
[1730166845791,0.06853362,70089.0,70088.0,0.70722285]
[1730166848699,0.06553362,70089.0,70088.0,0.70722285]
[1730166848891,0.06753362,70089.0,70088.0,0.84441814]
[1730166849087,0.06753362,70089.0,70088.0,0.70722285]
[1730166849588,0.06753362,70089.0,70088.0,0.84441814]
[1730166850097,0.06653362,70089.0,70088.0,0.84441814]
[1730166850691,0.00214024,70104.0,70103.0,0.064226]
[1730166850893,0.00214024,70104.0,70103.0,0.425026]
[1730166851093,0.00214024,70104.0,70103.0,0.63773161]
[1730166851994,0.01314024,70104.0,70103.0,0.63873161]
[1730166852798,0.01614024,70104.0,70103.0,0.63973161]
[1730166854100,0.01614024,70104.0,70103.0,0.68229723]
[1730166854899,0.08036524,70104.0,70103.0,0.3628]
[1730166855094,0.08036524,70104.0,70096.0,0.3608]
[1730166855095,0.064232,70097.0,70096.0,0.3608]
[1730166855295,0.20142729,70097.0,70096.0,0.3608]
[1730166856499,0.20442729,70097.0,70096.0,0.3618]
[1730166856905,0.067232,70097.0,70096.0,0.3618]
[1730166857091,0.20442729,70097.0,70096.0,0.3618]
[1730166857298,0.067232,70097.0,70096.0,0.3618]
[1730166857498,0.20442729,70097.0,70096.0,0.3618]
[1730166857890,0.21342729,70097.0,70096.0,0.3628]
[1730166858903,0.29220482,70097.0,70096.0,0.2745131]
[1730166859099,0.34340654,70097.0,70096.0,0.2745131]
[1730166859603,0.14197925,70097.0,70096.0,0.3387451]
[1730166859909,0.09077753,70097.0,70096.0,0.3387451]
[1730166860704,0.11835035,70097.0,70096.0,0.3387451]
[1730166862208,0.11835035,70097.0,70096.0,0.36403515]
[1730166865609,0.11834376,70097.0,70096.0,0.36403515]
[1730166866407,0.18257576,70097.0,70096.0,0.36403515]
[1730166866897,0.076232,70097.0,70096.0,0.29142365]
[1730166867305,0.012,70097.0,70096.0,0.29142365]
[1730166869208,0.012,70097.0,70096.0,0.50617643]
[1730166869408,0.012,70097.0,70096.0,0.54874205]
[1730166869607,0.012,70097.0,70096.0,0.50617643]
[1730166870499,0.00214024,70104.0,70096.0,0.56098318]
[1730166870805,0.00214024,70104.0,70103.0,0.56222129]
[1730166871311,0.00214024,70104.0,70103.0,0.7755131]
[1730166872104,0.425012,70119.0,70116.0,0.064213]
[1730166872516,0.064212,70118.0,70116.0,0.064213]
[1730166873411,0.064212,70118.0,70116.0,0.065213]
[1730166873917,0.064212,70118.0,70117.0,0.064213]
[1730166874411,0.068212,70118.0,70117.0,0.064213]
[1730166874816,0.064213,70117.0,70116.0,0.002]
[1730166875119,0.064213,70117.0,70116.0,0.02774933]
[1730166875310,0.064213,70117.0,70116.0,0.002]
[1730166875511,0.064213,70117.0,70116.0,0.001]
[1730166875711,0.064213,70117.0,70114.0,0.064216]
[1730166875906,0.064213,70117.0,70116.0,0.001]
[1730166876114,0.20140829,70117.0,70116.0,0.001]
[1730166876411,0.20540829,70117.0,70116.0,0.002]
[1730166876617,0.21440829,70117.0,70116.0,0.002]
[1730166876917,0.21440829,70117.0,70116.0,0.001]
[1730166877119,0.57520829,70117.0,70116.0,0.001]
[1730166878316,0.438013,70117.0,70116.0,0.001]
[1730166879017,0.438013,70117.0,70116.0,0.002]
[1730166881309,0.077213,70117.0,70116.0,0.002]
[1730166881916,0.18353867,70117.0,70116.0,0.002]
[1730166882111,0.17051406,70117.0,70116.0,0.04763527]
[1730166882315,0.03872567,70117.0,70116.0,0.9829325]
[1730166883019,0.03872567,70117.0,70116.0,1.12012779]
[1730166883415,0.15655148,70120.0,70119.0,0.064211]
[1730166883614,0.15655148,70122.0,70121.0,0.06421]
[1730166883809,0.15655148,70122.0,70121.0,0.20140529]
[1730166884017,0.15655148,70122.0,70121.0,0.4149704]
[1730166884223,0.15655148,70125.0,70124.0,0.064207]
[1730166884407,0.05117363,70125.0,70124.0,0.49799529]
[1730166884610,0.00213947,70133.0,70125.0,0.27777111]
[1730166884910,0.00213947,70133.0,70132.0,0.0642]
[1730166886306,0.00613947,70133.0,70132.0,0.0662]
[1730166887137,0.16244773,70133.0,70132.0,0.0662]
[1730166887620,0.00613947,70133.0,70132.0,0.0662]
[1730166888210,0.004,70133.0,70132.0,0.0662]
[1730166888411,0.04779208,70133.0,70132.0,0.0662]
[1730166888614,0.04779322,70133.0,70132.0,0.0662]
[1730166889017,0.004,70133.0,70132.0,0.0662]
[1730166889228,0.004,70133.0,70132.0,0.09226441]